Workbook

Sheet Početak
B1: O OVOM PREDLOŠKU
B2: Pomoću ove radne knjige Proračun za događaj pratite izdatke i prihode od nekog događaja.
B3: Unesite naziv događaja i unesite podatke u tablice na radnim listovima Troškovi i Prihodi.
B4: Automatski se izračunavaju ukupni izdaci i ukupni prihodi.
B5: Sažetak dobiti i gubitka i gubitka automatski se ažuriraju na radnom listu Sažetak dobiti i gubitka.
B6: Napomena:
B7: Dodatne su upute navedene u stupcu A na svakom radnom listu. Ovaj je tekst namjerno skriven. Da biste uklonili tekst, odaberite stupac A, a zatim odaberite IZBRIŠI. Da biste otkrili tekst, odaberite stupac A, a zatim promijenite boju fonta.
B8: Da biste saznali više o tablicama, pritisnite SHIFT, a zatim F10 unutar tablice pa odaberite mogućnost TABLICA, a potom ZAMJENSKI TEKST.

Sheet Troškovi
A1: U odgovarajuće tablice na ovom radnom listu unesite procijenjeno i stvarno izdatke za svaku kategoriju, a u ćeliju D1 unesite naziv događaja da biste prilagodili naslov ovoga i drugih radnih listova. Podnaslov ovog radnog lista nalazi se u ćeliji H1. U ćelijama u ovom stupcu nalaze se korisne upute za korištenje ovog radnog lista. Sljedeće se upute nalaze u ćeliji A3. | B1: Proračun događaja za naziv događaja | H1: IZDACI
A3: Oznaka Ukupni izdaci nalazi se u ćeliji s desne strane, oznaka Procijenjeno u ćeliji G3, a oznaka Stvarno u ćeliji H3. | B3: UKUPNI IZDACI | G3: Procijenjeno | H3: Stvarno
A4: Ukupni procijenjeni izdaci u ćeliji G4 i Ukupni stvarni izdaci u ćeliji H4 izračunavaju se automatski. Sljedeća je uputa u ćeliji A6. | G4: =SUM(C11,C19,C25,C32,G11,G19,G24) -> 882.00 kn | H4: =SUM(D11,D19,D25,D32,H11,H19,H24) -> 333.00 kn
A6: Unesite Troškovi Lokacije u tablicu koja počinje ćelijom s desne strane, a Troškovi Zakuske u tablicu koja počinje ćelijom F6. Sljedeća je uputa u ćeliji A13. | B6: Web-mjesto | C6: Procijenjeno | D6: Stvarno | F6: Domjenak | G6: Procijenjeno | H6: Stvarno
B7: Naknade za prostorije i dvoranu | C7: 500.00 kn | F7: Hrana
B8: Osoblje na lokaciji | F8: Pića | G8: 20.00 kn
B9: Oprema | F9: Stolnjaci | H9: 20.00 kn
B10: Stolovi i sjedala | F10: Osoblje i honorari
B11: Zbroj | C11: =SUBTOTAL(109,TroškoviLokacije[Procijenjeno]) -> 500.00 kn | D11: =SUBTOTAL(109,TroškoviLokacije[Stvarno]) -> 0.00 kn | F11: Zbroj | G11: =SUBTOTAL(109,TroškoviZakuske[Procijenjeno]) -> 20.00 kn | H11: =SUBTOTAL(109,TroškoviZakuske[Stvarno]) -> 20.00 kn
A13: Unesite Troškovi Ukrasa u tablicu koja počinje ćelijom s desne strane, a Troškovi Programa u tablicu koja počinje ćelijom F13. Sljedeća je uputa u ćeliji A21. | B13: Ukrasi | C13: Procijenjeno | D13: Stvarno | F13: Program | G13: Procijenjeno | H13: Stvarno
B14: Cvijeće | C14: 200.00 kn | D14: 300.00 kn | F14: Izvođači
B15: Svjećice | F15: Govornici | G15: 30.00 kn
B16: Rasvjeta | F16: Putovanja
B17: Baloni | F17: Hotel
B18: Papirni materijal | F18: Ostalo
B19: Zbroj | C19: =SUBTOTAL(109,TroškoviUkrasa[Procijenjeno]) -> 200.00 kn | D19: =SUBTOTAL(109,TroškoviUkrasa[Stvarno]) -> 300.00 kn | F19: Zbroj | G19: =SUBTOTAL(109,TroškoviPrograma[Procijenjeno]) -> 30.00 kn | H19: =SUBTOTAL(109,TroškoviPrograma[Stvarno]) -> 0.00 kn
A21: Unesite Troškovi Objavljivanja u tablicu koja počinje ćelijom s desne strane, a Troškovi Nagrada u tablicu koja počinje ćelijom F21. Sljedeća se uputa nalazi u ćeliji A27. | B21: Promocija | C21: Procijenjeno | D21: Stvarno | F21: Nagrade | G21: Procijenjeno | H21: Stvarno
B22: Grafički poslovi | F22: Vrpce/ploče/pehari
B23: Fotokopiranje/ispis | C23: 20.00 kn | F23: Darovi | G23: 100.00 kn
B24: Poštarina | F24: Zbroj | G24: =SUBTOTAL(109,TroškoviNagrada[Procijenjeno]) -> 100.00 kn | H24: =SUBTOTAL(109,TroškoviNagrada[Stvarno]) -> 0.00 kn
B25: Zbroj | C25: =SUBTOTAL(109,TroškoviObjavljivanja[Procijenjeno]) -> 20.00 kn | D25: =SUBTOTAL(109,TroškoviObjavljivanja[Stvarno]) -> 0.00 kn
A27: Unesite Razni Troškovi u tablicu koja počinje u ćeliji s desne strane. | B27: Razno | C27: Procijenjeno | D27: Stvarno
B28: Telefonski broj | D28: 13.00 kn
B29: Prijevoz | C29: 12.00 kn
B30: Zalihe tiskanica
B31: Usluge faksiranja
B32: Zbroj | C32: =SUBTOTAL(109,RazniTroškovi[Procijenjeno]) -> 12.00 kn | D32: =SUBTOTAL(109,RazniTroškovi[Stvarno]) -> 13.00 kn

Sheet Prihodi
A1: U odgovarajuće tablice na ovom radnom listu unesite procijenjeno i stvarno prihod za svaku kategoriju. U ćelijama s desne strane automatski se ažurira naslov ovog radnog lista. Podnaslov se nalazi u ćeliji G1. U ćelijama u ovom stupcu nalaze se korisne upute za korištenje ovog radnog lista. Sljedeće se upute nalaze u ćeliji A3. | B1: =Troškovi!B1 -> Proračun događaja za naziv događaja | G1: PRIHODI
A3: Oznaka Ukupni prihodi nalazi se u ćeliji s desne strane, oznaka Procijenjeno u ćeliji F3, a oznaka Stvarno u ćeliji G3. | B3: UKUPNI PRIHODI | F3: Procijenjeno | G3: Stvarno
A4: U ćeliji F4 automatski se izračunava ukupni procijenjeni prihod, a u ćeliji G4 ukupni stvarni prihod. | F4: =SUM(Ulaznice[[#Totals],[Procijenjeni prihod]],OglasiUProgramu[[#Totals],[Procijenjeni prihod]],IzlagačiIProdavači[[#Totals],[Procijenjeni prihod]],ProdajaArtikala[[#Totals],[Procijenjeni prihod]]) -> 1,936.00 kn | G4: =SUM(Ulaznice[[#Totals],[Stvarni prihod]],OglasiUProgramu[[#Totals],[Stvarni prihod]],IzlagačiIProdavači[[#Totals],[Stvarni prihod]],ProdajaArtikala[[#Totals],[Stvarni prihod]]) -> 1,831.00 kn
A5: Oznaka Ulaznice nalazi se u ćeliji s desne strane. | B5: ULAZNICE
A6: U tablicu koja počinje u ćeliji s desne stane unesite procijenjeni i stvarni broj ulaznica s cijenama. Procijenjeni i stvarni prihod od ulaznica izračunava se automatski. Sljedeća je uputa u ćeliji A11. | B6: Procijenjeni broj | C6: Stvarni broj | D6: Vrsta | E6: Cijena | F6: Procijenjeni prihod | G6: Stvarni prihod
B7: 300 | C7: 278 | D7: Odrasli @ | E7: 5.00 kn | F7: =B7*E7 -> 1,500.00 kn | G7: =C7*E7 -> 1,390.00 kn
B8: 197 | C8: 195 | D8: Djeca @ | E8: 2.00 kn | F8: =B8*E8 -> 394.00 kn | G8: =C8*E8 -> 390.00 kn
B9: 42 | C9: 51 | D9: Ostalo @ | E9: 1.00 kn | F9: =B9*E9 -> 42.00 kn | G9: =C9*E9 -> 51.00 kn
B10: Zbroj | F10: =SUBTOTAL(109,Ulaznice[Procijenjeni prihod]) -> 1,936.00 kn | G10: =SUBTOTAL(109,Ulaznice[Stvarni prihod]) -> 1,831.00 kn
A11: Oznaka Oglasi u programu nalazi se u ćeliji s desne strane. | B11: OGLASI U PROGRAMU
A12: U tablicu koja počinje u ćeliji s desne stane unesite procijenjeni i stvarni broj oglasa u programu i cijena oglasa. Procijenjeni i stvarni prihod od oglasa izračunava se automatski. Sljedeća se uputa nalaze u ćeliji A17. | B12: Procijenjeni broj | C12: Stvarni broj | D12: Vrsta | E12: Cijena | F12: Procijenjeni prihod | G12: Stvarni prihod
B13: 12 | D13: Naslovnice @ | F13: =B13*E13 -> 0.00 kn | G13: =C13*E13 -> 0.00 kn
C14: 158 | D14: Polovine stranica @ | F14: =B14*E14 -> 0.00 kn | G14: =C14*E14 -> 0.00 kn
B15: 4 | D15: Četvrtine stranica @ | F15: =B15*E15 -> 0.00 kn | G15: =C15*E15 -> 0.00 kn
B16: Zbroj | F16: =SUBTOTAL(109,OglasiUProgramu[Procijenjeni prihod]) -> 0.00 kn | G16: =SUBTOTAL(109,OglasiUProgramu[Stvarni prihod]) -> 0.00 kn
A17: U ćeliji s desne strane nalazi se oznaka Izlagači ili Dobavljači. | B17: IZLAGAČI/DOBAVLJAČI
A18: U tablicu koja počinje u ćeliji s desne stane unesite procijenjeni i stvarni broj izlagača i dobavljača te cijene štandova. Procijenjeni i stvarni prihod izračunava se automatski. Sljedeća se uputa nalazi u ćeliji A23. | B18: Procijenjeni broj | C18: Stvarni broj | D18: Vrsta | E18: Cijena | F18: Procijenjeni prihod | G18: Stvarni prihod
B19: 23 | D19: Veliki štandovi @ | F19: =B19*E19 -> 0.00 kn | G19: =C19*E19 -> 0.00 kn
B20: 354 | D20: Srednji štandovi @ | F20: =B20*E20 -> 0.00 kn | G20: =C20*E20 -> 0.00 kn
B21: 56 | D21: Mali štandovi @ | F21: =B21*E21 -> 0.00 kn | G21: =C21*E21 -> 0.00 kn
B22: Zbroj | F22: =SUBTOTAL(109,IzlagačiIProdavači[Procijenjeni prihod]) -> 0.00 kn | G22: =SUBTOTAL(109,IzlagačiIProdavači[Stvarni prihod]) -> 0.00 kn
A23: Oznaka Prodaja artikala nalazi se u ćeliji s desne strane. | B23: PRODAJA ARTIKALA
A24: U tablicu koja počinje u ćeliji s desne stane unesite procijenjeni i stvarni broj prodanih artikala te cijene artikala. Procijenjeni i stvarni prihod izračunava se automatski. | B24: Procijenjeni broj | C24: Stvarni broj | D24: Vrsta | E24: Cijena | F24: Procijenjeni prihod | G24: Stvarni prihod
D25: Artikli @ | F25: =B25*E25 -> 0.00 kn | G25: =C25*E25 -> 0.00 kn
B26: 123 | D26: Artikli @ | F26: =B26*E26 -> 0.00 kn | G26: =C26*E26 -> 0.00 kn
D27: Artikli @ | F27: =B27*E27 -> 0.00 kn | G27: =C27*E27 -> 0.00 kn
B28: 13 | D28: Artikli @ | F28: =B28*E28 -> 0.00 kn | G28: =C28*E28 -> 0.00 kn
B29: Zbroj | F29: =SUBTOTAL(109,ProdajaArtikala[Procijenjeni prihod]) -> 0.00 kn | G29: =SUBTOTAL(109,ProdajaArtikala[Stvarni prihod]) -> 0.00 kn

Sheet Sažetak dobiti i gubitka
A1: Na ovom se radnom listu automatski ažuriraju sažetak i grafikon dobiti i gubitka u kojim se prikazuju ukupni prihodi i izdaci. U ćelijama s desne strane automatski se ažurira naslov ovog radnog lista. Podnaslov se nalazi u ćeliji G1 i G2. U ćelijama u ovom stupcu nalaze se korisne upute za korištenje ovog radnog lista. Sljedeće se upute nalaze u ćeliji A3. | B1: =Troškovi!B1 -> Proračun događaja za naziv događaja | G1: DOBIT
G2: Sažetak gubitka
A3: Trakasti grafikon s prikazom procijenjenog prihoda i troškova te stvarnog prihoda i izdataka nalazi se u ćeliji E3. | E3: U ovoj se ćeliji nalazi trakasti grafikon s usporedbom procijenjenih prihoda i izdataka te stvarnih prihoda i izdataka.
A4: Tablica sažetka koja počinje u ćeliji s desne strane ažurira se automatski. Sljedeća je uputa u ćeliji A8. | B4: Zbroj | C4: Procijenjeno | D4: Stvarno
B5: Ukupni prihod | C5: =Prihodi!F4 -> 1,936.00 kn | D5: =Prihodi!G4 -> 1,831.00 kn
B6: Ukupni izdaci | C6: =Troškovi!G4 -> 882.00 kn | D6: =Troškovi!H4 -> 333.00 kn
A8: U ćeliji C8 automatski se izračunava procijenjeni Ukupna dobit ili gubitak, a u ćeliji D8 stvarni Ukupna dobit ili gubitak. | B8: Ukupna dobit (ili gubitak) | C8: =C5-C6 -> 1,054.00 kn | D8: =D5-D6 -> 1,498.00 kn
